fUST/lending_fUST_20250806
["ID","MTS","AMOUNT","RATE_DAILY","PERIOD"]
[377645039,1754473838865,-200.0,0.00030565,15]
[377645040,1754473838875,-200.0,0.00030565,15]
[377645041,1754473838888,-260.78337221,0.00030624,120]
[377645042,1754473838897,-156.0,0.00030666,5]
[377645043,1754473838907,-800.0,0.000308,10]
[377645044,1754473838917,-1200.0,0.000308,10]
[377645045,1754473838927,-1600.0,0.00031,10]
[377645046,1754473838936,-156.479824,0.00031001,3]
[377645047,1754473838945,-676.4,0.000311,2]
[377645048,1754473838955,-156.479824,0.00031123,2]
[377645049,1754473838967,-157.92175426,0.00031195,2]
[377645050,1754473838977,-1635.96,0.000312,7]
[377645051,1754473838986,-500.0,0.000312,2]
[377645052,1754473838996,-1578.47519548,0.00031252,15]
[377645053,1754473839005,-203.0,0.000314,29]
[377645054,1754473839015,-250.0,0.00031433,2]
[377645055,1754473839023,-162.24347197,0.00031473,30]
[377645056,1754473839033,-842.45170444,0.000315,3]
[377645057,1754473839042,-542.97728237,0.00031697,7]
[377645059,1754473839052,-502.85106063,0.00031773,5]
[377645060,1754473839061,-154.32672616,0.00031773,5]
[377645061,1754473839070,-500.0,0.00031773,5]
[377645062,1754473839079,-500.0,0.00031773,5]
[377645063,1754473839090,-503.61558073,0.00031773,5]
[377645064,1754473839099,-500.0,0.00031773,5]
[377645065,1754473839109,-500.0,0.00031773,5]
[377645067,1754473839119,-151.0,0.00031778,2]
[377645069,1754473839128,-11159.9317021,0.00031787,2]
[377645071,1754473839139,-1862.47968253,0.00031787,2]
[377645072,1754473839148,-500.0,0.00031797,2]
[377645074,1754473839157,-500.0,0.00031797,2]
[377645076,1754473839167,-9998.17139172,0.00031797,2]
[377645078,1754473839176,-420.0,0.00031797,2]
[377645080,1754473839185,-500.0,0.00031797,2]
[377645082,1754473839195,-151.0,0.00031797,2]
[377645084,1754473839204,-500.0,0.00031797,2]
[377645086,1754473839214,-4853.5503677,0.00031797,2]
[377645088,1754473839224,-161.52264247,0.00031797,2]
[377645090,1754473839233,-18960.16212006,0.00031797,2]
[377645091,1754473839242,-19228.97878596,0.00031824,5]
[377645092,1754473839251,-156.479824,0.0003186,3]
[377645093,1754473839261,-150.5,0.00031867,120]
[377645094,1754473839270,-726.0,0.00031867,120]
[377645095,1754473839279,-726.0,0.00031867,120]
[377645096,1754473839288,-500.0,0.00031873,2]
[377645097,1754473839298,-500.0,0.00031873,5]
[377645099,1754473839307,-337.73291325,0.00031873,5]
[377645100,1754473839316,-150.0,0.00031873,5]
[377645101,1754473839326,-500.0,0.00031873,5]
[377645102,1754473839335,-500.0,0.00031873,5]
[377645103,1754473839345,-500.0,0.00031873,5]
[377645104,1754473839356,-500.0,0.00031873,5]
[377645105,1754473839366,-500.0,0.00031873,2]
[377645106,1754473839375,-150.5,0.00031877,120]
[377645107,1754473839384,-168.81,0.00031877,120]
[377645108,1754473839394,-726.0,0.00031877,120]
[377645109,1754473839403,-726.0,0.00031877,120]
[377645110,1754473839413,-726.0,0.00031877,120]
[377645111,1754473839422,-150.5,0.00031887,120]
[377645112,1754473839432,-150.5,0.00031887,120]
[377645113,1754473839442,-726.0,0.00031887,120]
[377645114,1754473839451,-726.0,0.00031887,120]
[377645115,1754473839459,-726.0,0.00031887,120]
[377645116,1754473839468,-1178.0,0.00031894,120]
[377645117,1754473839478,-1178.0,0.00031894,120]
[377645118,1754473839488,-411.76787954,0.00031895,30]
[377645119,1754473839497,-350.15648856,0.00031897,2]
[377645120,1754473839506,-305307.62792421,0.00031897,20]
[377645121,1754473840413,-3790.0,0.00031897,20]
[377645129,1754473843420,-21505.39217089,0.00031897,20]
[377645130,1754473843432,-2201.43040572,0.00031897,20]
[377645131,1754473843527,-1163.76067014,0.00031897,20]
[377645151,1754474049639,12636.0,0.00030137,120]
[377645154,1754474445547,446.57,0.00030137,120]
[377645155,1754474540360,2662.77514,0.00027967,120]
[377645156,1754474692750,774.85,0.00030136,120]
[377645169,1754474850100,-333.7126568,0.00028,3]
[377645171,1754474854807,735.98649,0.00030137,120]
[377645172,1754474902439,160.0,0.00013699,2]
[377645173,1754474902763,240.0,0.00014247,2]
[377645175,1754474951092,-193.75642655,0.00028,3]
[377645176,1754474951119,-1939.00485998,0.00028068,9]
[377645177,1754474951146,-300.0,0.00028267,2]
[377645178,1754474951170,-694.26271889,0.00028268,2]
[377645179,1754474960186,161.0,0.00025684,7]
[377645180,1754474970076,-161.0,0.00028162,30]
[377645181,1754474970098,-3878.78477745,0.00028268,2]
[377645183,1754475034730,219.63806602,0.00030137,120]
[377645215,1754475038818,-527.46908335,0.00028,3]
[377645216,1754475038829,-300.0,0.00028267,2]
[377645217,1754475038838,-216.47163855,0.00028268,2]
[377645218,1754475038848,-844.95143478,0.00028268,2]
[377645219,1754475038938,-8736.97255088,0.00028268,2]
[377645220,1754475038950,-162.69,0.00028452,2]
[377645221,1754475038959,-312.16666667,0.00029,10]
[377645222,1754475038969,-527.46908335,0.00029,10]
[377645223,1754475038979,-1874.37136457,0.00029023,11]
[377645224,1754475038988,-244.97559,0.00029117,2]
[377645225,1754475038997,-150.26,0.00029153,15]
[377645226,1754475039008,-150.26,0.00029153,15]
[377645228,1754475039019,-178.5367691,0.00029153,2]
[377645229,1754475039029,-150.26,0.00029153,15]
[377645230,1754475039040,-160.0,0.0002917,2]
[377645231,1754475039049,-188.508,0.00029176,2]
[377645232,1754475039060,-2148.0,0.00029176,2]
[377645233,1754475039070,-300.0,0.00029206,2]
[377645234,1754475039079,-151.0,0.00029206,2]
[377645235,1754475039089,-300.0,0.00029206,2]
[377645236,1754475039099,-300.0,0.00029206,2]
[377645237,1754475039108,-300.0,0.00029206,2]
[377645238,1754475039118,-300.0,0.00029206,2]
[377645239,1754475039128,-300.0,0.00029206,2]
[377645240,1754475039137,-250.0,0.00029206,2]
[377645241,1754475039150,-250.0,0.00029206,2]
[377645242,1754475039159,-461.26544088,0.00029217,2]
[377645243,1754475039169,-622.89087291,0.00029222,2]
[377645244,1754475039179,-345.82541399,0.00029222,2]
[377645246,1754475039188,-24900.0,0.00029223,2]
[377645247,1754475039197,-150.26,0.00029253,15]
[377645248,1754475039206,-150.26,0.00029253,15]
[377645249,1754475039217,-150.26,0.00029353,15]
[377645250,1754475039227,-150.26,0.00029353,15]
[377645251,1754475039238,-1000.0,0.00029364,2]
[377645252,1754475039248,-1100.0,0.00029399,2]
[377645254,1754475039258,-188.395187,0.00029421,2]
[377645255,1754475039267,-1000.0,0.00029446,2]
[377645256,1754475039277,-700.0,0.00029447,2]
[377645258,1754475039286,-150.26,0.00029453,15]
[377645260,1754475039300,-700.0,0.00029494,2]
[377645262,1754475039313,-700.0,0.00029552,2]
[377645263,1754475039322,-150.26,0.00029553,15]
[377645265,1754475039332,-700.0,0.0002961,2]
[377645268,1754475039342,-150.26,0.00029653,15]
[377645269,1754475039351,-150.26,0.00029753,15]
[377645271,1754475039361,-500.0,0.00029822,2]
[377645273,1754475039371,-1874.37136439,0.00029847,12]
[377645274,1754475039381,-1000.0,0.00029878,2]
[377645275,1754475039390,-700.0,0.00030063,7]
[377645277,1754475039402,-1100.0,0.00030068,7]
[377645279,1754475039411,-842.45170444,0.00030124,2]
[377645281,1754475039421,-500.0,0.00030137,2]
[377645282,1754475039431,-500.0,0.00030137,30]
[377645284,1754475039441,-500.0,0.00030137,30]
[377645286,1754475039451,-500.0,0.00030137,7]
[377645288,1754475039461,-500.0,0.00030137,10]
[377645290,1754475039472,-500.0,0.00030137,30]
[377645293,1754475039481,-500.0,0.00030137,30]
[377645296,1754475039491,-500.0,0.00030137,15]
[377645299,1754475039501,-500.0,0.00030137,30]
[377645302,1754475039510,-500.0,0.00030137,7]
[377645305,1754475039519,-500.0,0.00030137,7]
[377645308,1754475039529,-500.0,0.00030137,2]
[377645311,1754475039540,-500.0,0.00030137,10]
[377645314,1754475039550,-500.0,0.00030137,2]
[377645317,1754475039559,-500.0,0.00030137,7]
[377645321,1754475039571,-500.0,0.00030137,30]
[377645323,1754475039581,-500.0,0.00030137,7]
[377645325,1754475039591,-500.0,0.00030137,10]
[377645327,1754475039601,-500.0,0.00030137,10]
[377645329,1754475039610,-500.0,0.00030137,7]
[377645331,1754475039620,-500.0,0.00030137,10]
[377645333,1754475039630,-500.0,0.00030137,10]
[377645335,1754475039640,-500.0,0.00030137,2]
[377645337,1754475039651,-500.0,0.00030137,7]
[377645339,1754475039661,-500.0,0.00030137,2]
[377645341,1754475039671,-229.99,0.00030137,10]
[377645342,1754475039681,-400.0,0.00030137,120]
[377645343,1754475039690,-1100.0,0.00030137,7]
[377645344,1754475039700,-420.0,0.00030137,2]
[377645345,1754475039710,-500.0,0.00030137,2]
[377645346,1754475039719,-151.0,0.00030137,2]
[377645347,1754475039729,-500.0,0.00030137,2]
[377645348,1754475039739,-168.20976658,0.00030137,2]
[377645349,1754475039748,-1100.0,0.00030154,7]
[377645351,1754475039758,-1000.0,0.00030161,7]
[377645353,1754475039768,-700.0,0.00030289,7]
[377645355,1754475039778,-700.0,0.00030312,7]
[377645357,1754475039787,-420.0,0.00030411,2]
[377645358,1754475039797,-500.0,0.00030411,2]
[377645359,1754475039807,-1100.0,0.00030433,7]
[377645360,1754475039816,-420.0,0.0003052,2]
[377645361,1754475039826,-500.0,0.00030533,7]
[377645362,1754475039835,-1100.0,0.00030562,7]
[377645363,1754475039845,-151.0,0.00030575,2]
[377645364,1754475039855,-260.78337221,0.00030624,120]
[377645365,1754475039866,-1874.37136439,0.0003067,14]
[377645366,1754475039880,-420.0,0.00030685,2]
[377645368,1754475039890,-500.0,0.00030685,2]
[377645369,1754475039899,-1100.0,0.00030695,7]
[377645371,1754475039909,-700.0,0.0003072,7]
[377645372,1754475039920,-1000.0,0.00030852,7]
[377645373,1754475039929,-700.0,0.000309,7]
[377645374,1754475039939,-420.0,0.00030959,2]
[377645375,1754475039951,-505.51844708,0.00030959,2]
[377645376,1754475039961,-1000.0,0.00031004,7]
[377645378,1754475039971,-1100.0,0.00031006,7]
[377645380,1754475039981,-156.479824,0.00031049,2]
[377645382,1754475039990,-1000.0,0.00031068,7]
[377645383,1754475040000,-12754.2076596,0.0003109,2]
[377645385,1754475040011,-1676.45891143,0.0003109,2]
[377645387,1754475040021,-200.0,0.00031094,15]
[377645390,1754475040030,-200.0,0.00031094,15]
[377645392,1754475040039,-751.56,0.000311,2]
[377645393,1754475040049,-500.0,0.000311,2]
[377645395,1754475040058,-500.0,0.000311,2]
[377645397,1754475040068,-1501.969113,0.000311,5]
[377645399,1754475040077,-499.3,0.00031153,7]
[377645402,1754475040086,-420.0,0.00031233,2]
[377645404,1754475040096,-500.0,0.00031374,2]
[377645408,1754475040106,-500.0,0.00031374,2]
[377645410,1754475040116,-1874.37136439,0.00031493,16]
[377645413,1754475040125,-420.0,0.00031507,2]
[377645414,1754475040134,-391.84647833,0.00031507,2]
[377645416,1754475040144,-1100.0,0.00031533,7]
[377645418,1754475040154,-2187.63300948,0.00031635,2]
[377645420,1754475040163,-203.0,0.0003164,30]
[377645422,1754475040173,-500.0,0.00031648,2]
[377645424,1754475040182,-517.9402422,0.00031648,2]
[377645426,1754475040191,-160.0,0.00031672,2]
[377645428,1754475040201,-500.0,0.00031673,5]
[377645430,1754475040211,-500.0,0.00031673,5]
[377645432,1754475040220,-2187.63300944,0.00031675,2]
[377645434,1754475040230,-6320.05404002,0.00031676,2]
[377645436,1754475040239,-38262.6229787,0.00031687,2]
[377645438,1754475040249,-5029.37673429,0.00031687,2]
[377645440,1754475040258,-538.79,0.00031687,3]
[377645442,1754475040268,-542.97728237,0.00031693,7]
[377645443,1754475040277,-3000.0,0.00031696,3]
[377645445,1754475040286,-137540.57496007,0.00031697,2]
[377645447,1754475040296,-1676.86,0.000317,7]
[377645449,1754475040305,-2187.63300944,0.00031714,2]
[377645451,1754475040315,-500.0,0.00031727,2]
[377645453,1754475040324,-6320.05404002,0.00031734,2]
[377645455,1754475040334,-500.0,0.00031735,2]
[377645457,1754475040344,-4000.0,0.00031749,3]
[377645459,1754475040354,-2187.63300944,0.00031754,2]
[377645461,1754475040363,-12754.2076596,0.00031763,2]
[377645462,1754475040372,-1676.45891143,0.00031763,2]
[377645463,1754475040382,-160.0,0.0003177,2]
[377645464,1754475040391,-160.0,0.00031771,2]
[377645465,1754475040401,-500.0,0.00031773,5]
[377645468,1754475040557,-551.72797085,0.00031773,5]
[377645469,1754475040568,-501.54931793,0.00031773,5]
[377645470,1754475040578,-500.0,0.00031773,5]
[377645471,1754475040588,-601.9764861,0.00031773,5]
[377645472,1754475040598,-500.0,0.00031773,2]
[377645473,1754475040608,-500.0,0.00031773,5]
[377645474,1754475040618,-150.0,0.00031773,5]
[377645475,1754475040627,-500.0,0.00031773,5]
[377645476,1754475040637,-500.0,0.00031773,5]
[377645477,1754475040646,-337.73291325,0.00031773,5]
[377645478,1754475040656,-500.0,0.00031773,5]
[377645479,1754475040666,-500.0,0.00031773,5]
[377645480,1754475040675,-500.0,0.00031773,5]
[377645481,1754475040685,-500.0,0.00031773,5]
[377645482,1754475040694,-500.0,0.00031773,5]
[377645483,1754475040704,-503.61558073,0.00031773,5]
[377645484,1754475040715,-500.0,0.00031773,5]
[377645485,1754475040724,-500.0,0.00031773,5]
[377645486,1754475040733,-154.32672616,0.00031773,5]
[377645487,1754475040743,-500.0,0.00031773,5]
[377645488,1754475040752,-500.0,0.00031773,2]
[377645489,1754475040761,-500.0,0.00031773,5]
[377645490,1754475040771,-500.0,0.00031773,5]
[377645491,1754475040780,-500.0,0.00031773,5]
[377645492,1754475040790,-500.0,0.00031773,5]
[377645493,1754475040799,-420.0,0.00031781,2]
[377645494,1754475040809,-12754.2076596,0.00031782,2]
[377645495,1754475040819,-1676.45891143,0.00031782,2]
[377645496,1754475040829,-500.0,0.00031789,2]
[377645497,1754475040838,-9998.17139172,0.00031792,2]
[377645498,1754475040848,-6320.05404002,0.00031792,2]
[377645499,1754475040858,-19228.97878596,0.00031792,5]
[377645500,1754475040868,-161.52264247,0.00031793,2]
[377645501,1754475040883,-2142.67679636,0.00031793,2]
[377645503,1754475040928,-44.95621308,0.00031793,2]
[377645504,1754475040938,-631.05533001,0.00031797,2]
[377645505,1754475040947,-151.0,0.000318,10]
[377645506,1754475040958,-151.0,0.000318,18]
[377645507,1754475040969,-1100.0,0.00031833,7]
[377645508,1754475040978,-463.59762003,0.00031873,2]
[377645509,1754475040988,-500.0,0.00031873,5]
[377645510,1754475040999,-502.85106063,0.00031873,5]
[377645511,1754475041009,-500.0,0.00031873,5]
[377645512,1754475041020,-150.0,0.00031873,3]
[377645513,1754475041030,-500.0,0.00031873,5]
[377645514,1754475041039,-150.0,0.00031873,5]
[377645515,1754475041049,-150.95238527,0.00031873,5]
[377645516,1754475041058,-1178.0,0.00031877,120]
[377645517,1754475041068,-359.17,0.00031882,3]
[377645518,1754475041077,-179.58,0.00031882,3]
[377645519,1754475041087,-150.5,0.00031883,120]
[377645520,1754475041097,-726.0,0.00031883,120]
[377645521,1754475041107,-726.0,0.00031883,120]
[377645522,1754475041116,-500.0,0.00031883,60]
[377645523,1754475041126,-500.0,0.00031883,60]
[377645524,1754475041135,-1178.0,0.00031887,120]
[377645525,1754475041144,-151.0,0.00031892,7]
[377645526,1754475041154,-151.0,0.00031892,7]
[377645527,1754475041163,-151.0,0.00031892,7]
[377645528,1754475041173,-151.0,0.00031892,7]
[377645529,1754475041182,-151.0,0.00031892,7]
[377645530,1754475041190,-151.0,0.00031892,7]
[377645531,1754475041199,-151.0,0.00031892,7]
[377645532,1754475041209,-151.0,0.00031892,7]
[377645533,1754475041218,-290.644915,0.00031892,7]
[377645534,1754475041227,-207.788242,0.00031892,7]
[377645535,1754475041236,-151.0,0.00031892,7]
[377645536,1754475041245,-151.0,0.00031892,7]
[377645537,1754475041254,-151.0,0.00031892,7]
[377645538,1754475041263,-151.0,0.00031892,7]
[377645539,1754475041272,-151.0,0.00031892,7]
[377645540,1754475041281,-151.0,0.00031892,7]
[377645541,1754475041290,-151.0,0.00031892,7]
[377645542,1754475041299,-465.728849,0.00031892,7]
[377645543,1754475041309,-465.728849,0.00031892,7]
[377645544,1754475041318,-465.728849,0.00031892,7]
[377645545,1754475041326,-32.19296798,0.00031892,7]
[377645546,1754475041352,-433.53588102,0.00031892,7]
[377645547,1754475041361,-465.728849,0.00031892,7]
[377645548,1754475041371,-465.728849,0.00031892,7]
[377645549,1754475041379,-465.728849,0.00031892,7]
[377645550,1754475041389,-465.728849,0.00031892,7]
[377645551,1754475041398,-465.728849,0.00031892,7]
[377645552,1754475041407,-465.728849,0.00031892,7]
[377645553,1754475041416,-465.728849,0.00031892,7]
[377645554,1754475041425,-465.728849,0.00031892,7]
[377645555,1754475041434,-465.728849,0.00031892,7]
[377645556,1754475041443,-465.728849,0.00031892,7]
[377645557,1754475041452,-151.0,0.00031892,7]
[377645558,1754475041462,-151.0,0.00031892,7]
[377645559,1754475041471,-151.0,0.00031892,7]
[377645560,1754475041480,-151.0,0.00031892,7]
[377645561,1754475041489,-151.0,0.00031892,7]
[377645562,1754475041498,-301.997916,0.00031892,7]
[377645563,1754475041507,-255.176618,0.00031892,7]
[377645564,1754475041516,-151.0,0.00031892,7]
[377645565,1754475041525,-151.0,0.00031892,7]
[377645566,1754475041534,-151.0,0.00031892,7]
[377645567,1754475041543,-151.0,0.00031892,7]
[377645568,1754475041552,-151.0,0.00031892,7]
[377645569,1754475041562,-115.5586648,0.00031892,7]
[377645570,1754475041617,-35.4413352,0.00031892,7]
[377645571,1754475041627,-151.0,0.00031892,7]
[377645572,1754475041637,-151.0,0.00031892,7]
[377645573,1754475041646,-151.0,0.00031892,7]
[377645574,1754475041655,-151.0,0.00031892,7]
[377645575,1754475041664,-254.977655,0.00031892,7]
[377645576,1754475041673,-196.35856,0.00031892,7]
[377645577,1754475041682,-196.35856,0.00031892,7]
[377645578,1754475041692,-196.35856,0.00031892,7]
[377645579,1754475041702,-196.35856,0.00031892,7]
[377645580,1754475041711,-196.35856,0.00031892,7]
[377645581,1754475041720,-196.35856,0.00031892,7]
[377645582,1754475041729,-196.35856,0.00031892,7]
[377645583,1754475041739,-196.35856,0.00031892,7]
[377645584,1754475041748,-196.35856,0.00031892,7]
[377645585,1754475041757,-196.35856,0.00031892,7]
[377645586,1754475041767,-196.35856,0.00031892,7]
[377645587,1754475041777,-196.35856,0.00031892,7]
[377645588,1754475041786,-196.35856,0.00031892,7]
[377645589,1754475041795,-196.35856,0.00031892,7]
[377645590,1754475041805,-150.5,0.00031893,120]
[377645591,1754475041817,-726.0,0.00031893,120]
[377645592,1754475041827,-726.0,0.00031893,120]
[377645593,1754475041837,-726.0,0.00031893,120]
[377645594,1754475041847,-1202.79589573,0.00031893,2]
[377645595,1754475041856,-151.0,0.00031893,7]
[377645596,1754475041865,-151.0,0.00031893,7]
[377645597,1754475041879,-151.0,0.00031893,7]
[377645598,1754475041889,-151.0,0.00031893,7]
[377645599,1754475041899,-151.0,0.00031893,7]
[377645600,1754475041908,-151.0,0.00031893,7]
[377645601,1754475041919,-151.0,0.00031893,7]
[377645602,1754475041928,-151.0,0.00031893,7]
[377645603,1754475041937,-151.0,0.00031893,7]
[377645604,1754475041947,-151.0,0.00031893,7]
[377645605,1754475041957,-151.0,0.00031893,7]
[377645606,1754475041968,-151.0,0.00031893,7]
[377645607,1754475041978,-151.0,0.00031893,7]
[377645608,1754475041987,-151.0,0.00031893,7]
[377645609,1754475041998,-151.0,0.00031893,7]
[377645610,1754475042007,-237.15291,0.00031893,7]
[377645611,1754475042017,-151.0,0.00031893,7]
[377645612,1754475042027,-151.0,0.00031893,7]
[377645613,1754475042037,-286.625418,0.00031893,7]
[377645614,1754475042048,-151.0,0.00031893,7]
[377645615,1754475042057,-151.0,0.00031893,7]
[377645616,1754475042067,-151.0,0.00031893,7]
[377645617,1754475042076,-151.0,0.00031893,7]
[377645618,1754475042087,-151.0,0.00031893,7]
[377645619,1754475042097,-151.0,0.00031893,7]
[377645620,1754475042107,-151.0,0.00031893,7]
[377645621,1754475042117,-151.0,0.00031893,7]
[377645622,1754475042126,-151.0,0.00031893,7]
[377645623,1754475042135,-151.0,0.00031893,7]
[377645624,1754475042145,-151.0,0.00031893,7]
[377645625,1754475042155,-151.0,0.00031893,7]
[377645626,1754475042165,-199.575783,0.00031893,7]
[377645627,1754475042175,-1500.0,0.00031893,28]
[377645628,1754475042185,-1500.0,0.00031893,28]
[377645629,1754475042196,-1500.0,0.00031893,28]
[377645630,1754475042205,-1370.51160999,0.00031893,28]
[377645631,1754475042263,-129.48839001,0.00031893,28]
[377645632,1754475042272,-1500.0,0.00031893,28]
[377645633,1754475042283,-1500.0,0.00031893,28]
[377645634,1754475042292,-1500.0,0.00031893,28]
[377645635,1754475042302,-1500.0,0.00031893,28]
[377645636,1754475042311,-1500.0,0.00031893,28]
[377645637,1754475042321,-1500.0,0.00031893,28]
[377645638,1754475042331,-1500.0,0.00031893,28]
[377645639,1754475042342,-1500.0,0.00031893,28]
[377645640,1754475042352,-1500.0,0.00031893,28]
[377645641,1754475042363,-1500.0,0.00031893,28]
[377645642,1754475042374,-1500.0,0.00031893,28]
[377645643,1754475042385,-1500.0,0.00031893,28]
[377645644,1754475042396,-1500.0,0.00031893,28]
[377645645,1754475042408,-1500.0,0.00031893,28]
[377645646,1754475042418,-1500.0,0.00031893,28]
[377645647,1754475042427,-212.684675,0.00031893,28]
[377645648,1754475042436,-151.0,0.00031893,7]
[377645649,1754475042446,-151.0,0.00031893,7]
[377645650,1754475042456,-151.0,0.00031893,7]
[377645651,1754475042465,-151.0,0.00031893,7]
[377645652,1754475042474,-151.0,0.00031893,7]
[377645653,1754475042483,-151.0,0.00031893,7]
[377645654,1754475042493,-151.0,0.00031893,7]
[377645655,1754475042502,-151.0,0.00031893,7]
[377645656,1754475042512,-209.730705,0.00031893,7]
[377645657,1754475042522,-151.0,0.00031893,7]
[377645658,1754475042532,-151.0,0.00031893,7]
[377645659,1754475042542,-151.0,0.00031893,7]
[377645660,1754475042552,-151.0,0.00031893,7]
[377645661,1754475042562,-151.0,0.00031893,7]
[377645662,1754475042575,-151.0,0.00031893,7]
[377645663,1754475042585,-151.0,0.00031893,7]
[377645664,1754475042595,-151.0,0.00031893,7]
[377645665,1754475042606,-151.0,0.00031893,7]
[377645666,1754475042616,-151.0,0.00031893,7]
[377645667,1754475042626,-267.761685,0.00031893,7]
[377645668,1754475042636,-125394.52615319,0.00031893,20]
[377645669,1754475042666,-509.81261403,0.00031893,20]
[377645670,1754475042679,-582.97165882,0.00031893,20]
[377645675,1754475043300,-546.20276724,0.00031893,20]
[377645676,1754475043313,-1071.22743929,0.00031893,20]
[377645677,1754475043327,-906.40999998,0.00031893,20]
[377645679,1754475044065,-17655.9,0.00031893,20]
[377645681,1754475044163,-3647.1770942,0.00031893,20]
[377645688,1754475046620,-46.4069846,0.00031893,20]
[377645689,1754475046716,-6512.85487989,0.00031893,20]
[377645690,1754475046772,-5118.24633636,0.00031893,20]
[377645691,1754475172679,1721.89480889,0.00024551,2]
[377645692,1754475177328,1000.0,0.00030136,120]
[377645693,1754475218934,192.46067436,0.00030137,120]
[377645694,1754475223754,553.09653738,0.00030136,120]
[377645695,1754475276495,190.9682697,0.000301,120]
[377645696,1754475284598,151.0,0.00024551,2]
[377645697,1754475333076,625.0145796,0.00024551,2]
[377645698,1754475333106,1039.48373567,0.00024551,2]
[377645699,1754475501992,1609.01503793,0.00024551,2]
[377645700,1754475522593,1997.081355,0.00028888,120]
[377645701,1754475610996,264.91051919,0.00024551,2]
[377645702,1754475686116,1548.17210162,0.00024551,2]
[377645703,1754475868921,1489.72742593,0.00024551,2]
[377645708,1754476031766,1440.06984494,0.00024551,2]
[377645710,1754476053130,-390.7232145,0.00025529,3]
[377645711,1754476061535,460.0,0.0003,120]
[377645713,1754476088713,460.0,0.0003,120]
[377645715,1754476116825,460.0,0.0003,120]
[377645717,1754476128504,17608.62133472,0.0002249,7]
[377645718,1754476128528,25000.0,0.0002249,7]
[377645719,1754476128552,25000.0,0.0002249,7]
[377645720,1754476128576,25000.0,0.0002249,7]
[377645721,1754476128598,25000.0,0.0002249,7]
[377645722,1754476128622,25000.0,0.0002249,7]
[377645723,1754476128645,25000.0,0.0002249,7]
[377645724,1754476128668,5751.36321585,0.0002249,7]
[377645725,1754476134955,468.265,0.0003,120]
[377645727,1754476152099,-300.0,0.00024999,2]
[377645728,1754476152120,-7128.95595106,0.00025,2]
[377645729,1754476152179,-37684.92478227,0.00025,2]
[377645730,1754476155599,5000.0,0.000251,14]
[377645731,1754476164118,-53186.11926667,0.00025,2]
[377645732,1754476164138,-1023.15294915,0.00025428,2]
[377645733,1754476164163,-1049.34663034,0.00025529,3]
[377645734,1754476164185,-178.49,0.0002599,10]
[377645735,1754476164207,-1658.129558,0.00026,30]
[377645736,1754476164232,-1440.06984484,0.00026506,5]
[377645737,1754476164253,-420.0,0.00027082,2]
[377645738,1754476164286,-438.84756187,0.00027484,7]
[377645739,1754476164630,150.0,0.000229,2]
[377645741,1754476192301,160.0,0.00027238,2]
[377645742,1754476204592,156.0,0.00024293,2]
[377645743,1754476220802,157.0,0.00025726,14]
[377645744,1754476230438,150.0,0.00023954,2]
[377645745,1754476230773,150.0,0.00025094,2]
[377645778,1754476231879,-150.0,0.000279,2]
[377645779,1754476231889,-160.0,0.00028455,2]
[377645780,1754476231899,-160.0,0.00028455,2]
[377645782,1754476231908,-705.43574187,0.00028461,2]